bitfinex-derivatives/quotes_SOLF0:USTF0_20260308
["timestamp","ask_amount","ask_price","bid_price","bid_amount"]
[1772958259424,10.05780932,82.649,82.591,5.68641432]
[1772958259630,10.05780932,82.648,82.591,5.68641432]
[1772958259827,10.89,82.646,82.591,5.68641432]
[1772958260130,10.05780932,82.645,82.591,5.68641432]
[1772958260334,10.05780932,82.644,82.601,5.68686976]
[1772958260529,10.05780932,82.643,82.601,5.68686976]
[1772958260730,10.05780932,82.642,82.601,5.68686976]
[1772958260930,10.05780932,82.641,82.601,5.68686976]
[1772958261128,10.888,82.658,82.601,5.68686976]
[1772958261427,3.90410229,82.65,82.601,5.68686976]
[1772958261632,10.05481089,82.649,82.601,5.68686976]
[1772958261824,10.05481089,82.648,82.601,5.68686976]
[1772958262029,10.05481089,82.647,82.601,5.68686976]
[1772958262332,10.05481089,82.646,82.601,5.68686976]
[1772958262531,10.05481089,82.645,82.601,5.68686976]
[1772958262727,10.05481089,82.644,82.601,5.68686976]
[1772958263033,10.05481089,82.643,82.601,5.68686976]
[1772958263231,10.05481089,82.642,82.601,5.68686976]
[1772958263533,3.90410229,82.65,82.601,5.68686976]
[1772958263833,10.0519202,82.649,82.601,5.68686976]
[1772958264034,10.0519202,82.648,82.601,5.68686976]
[1772958264229,10.0519202,82.647,82.601,5.68686976]
[1772958264534,10.0519202,82.646,82.601,5.68686976]
[1772958264734,10.0519202,82.645,82.601,5.68686976]
[1772958264932,10.0519202,82.644,82.601,5.68686976]
[1772958265131,10.0519202,82.643,82.601,5.68686976]
[1772958265332,3.90410229,82.65,82.601,5.68686976]
[1772958265532,10.06650229,82.649,82.601,5.68686976]
[1772958265733,10.06650229,82.648,82.601,5.68686976]
[1772958265932,10.06650229,82.647,82.601,5.68686976]
[1772958266133,10.06650229,82.646,82.601,5.68686976]
[1772958266329,10.06650229,82.645,82.601,5.68686976]
[1772958266533,10.06650229,82.644,82.601,5.68686976]
[1772958266736,14.79310229,82.65,82.601,5.68686976]
[1772958266936,10.06579429,82.649,82.601,5.68686976]
[1772958267234,10.06579429,82.648,82.601,5.68686976]
[1772958267431,10.06579429,82.647,82.601,5.68686976]
[1772958267636,10.06579429,82.646,82.601,5.68686976]
[1772958267930,10.06579429,82.645,82.601,5.68686976]
[1772958268135,10.89,82.646,82.601,5.68686976]
[1772958268728,10.06487438,82.645,82.601,5.68686976]
[1772958269038,10.06487438,82.644,82.601,5.68686976]
[1772958269237,10.89,82.646,82.601,5.68686976]
[1772958269439,10.06444358,82.645,82.601,5.68686976]
[1772958269639,10.06444358,82.644,82.601,5.68686976]
[1772958269938,10.89,82.646,82.601,5.68686976]
[1772958270139,10.0644456,82.645,82.601,5.68686976]
[1772958270340,10.891,82.641,82.601,5.68686976]
[1772958271437,3.90410229,82.64,82.601,5.68686976]
[1772958272739,11.26877736,82.662,82.601,5.68686976]
[1772958272948,3.90410229,82.66,82.611,5.72339768]
[1772958273147,3.90410229,82.65,82.611,5.72339768]
[1772958273446,10.889,82.656,82.611,5.72339768]
[1772958273634,10.06516376,82.655,82.611,5.72339768]
[1772958273834,10.06516376,82.654,82.611,5.72339768]
[1772958274034,3.90410229,82.66,82.611,5.72339768]
[1772958274241,3.90410229,82.64,82.594,5.72947826]
[1772958275844,10.891,82.638,82.594,5.72947826]
[1772958277850,10.891,82.638,82.582,207.12025667]
[1772958277851,10.89,82.647,82.601,5.79464364]
[1772958279255,10.07088911,82.646,82.601,5.79464364]
[1772958279454,10.89,82.647,82.601,5.79464364]
[1772958279648,10.07088911,82.646,82.601,5.79464364]
[1772958279848,10.89,82.647,82.601,5.79464364]
[1772958280045,10.07088911,82.646,82.601,5.79464364]
[1772958280345,14.79610229,82.63,82.588,5.80157161]
[1772958280551,14.79610229,82.63,82.582,207.12025667]
[1772958280552,3.90410229,82.65,82.591,5.80157161]
[1772958280748,10.07206452,82.649,82.591,5.80157161]
[1772958280943,10.07206452,82.648,82.591,5.80157161]
[1772958281153,3.90410229,82.66,82.611,5.80163958]
[1772958281456,10.07478432,82.659,82.611,5.80163958]
[1772958281651,10.07478432,82.658,82.611,5.80163958]
[1772958281852,10.07478432,82.657,82.611,5.80163958]
[1772958282053,10.07478432,82.656,82.611,5.80163958]
[1772958282250,10.07478432,82.655,82.611,5.80163958]
[1772958282450,10.07478432,82.654,82.611,5.80163958]
[1772958282753,10.07478432,82.653,82.611,5.80163958]
[1772958282951,3.90410229,82.66,82.611,5.80163958]
[1772958283154,10.07924327,82.659,82.611,5.80163958]
[1772958283354,10.07924327,82.658,82.611,5.80163958]
[1772958283555,10.07924327,82.657,82.611,5.80163958]
[1772958283757,10.07924327,82.656,82.611,5.80163958]
[1772958283951,10.07924327,82.655,82.611,5.80163958]
[1772958284152,10.07924327,82.654,82.611,5.80163958]
[1772958284354,10.07924327,82.653,82.611,5.80163958]
[1772958284659,10.07924327,82.652,82.611,5.80163958]
[1772958284956,10.07924327,82.651,82.611,5.80163958]
[1772958285158,3.90410229,82.66,82.611,5.80163958]
[1772958285359,10.08498506,82.659,82.611,5.80163958]
[1772958285556,10.08498506,82.658,82.611,5.80163958]
[1772958285755,3.90410229,82.66,82.611,5.80163958]
[1772958285756,10.08498506,82.657,82.611,5.80163958]
[1772958285954,10.08498506,82.656,82.611,5.80163958]
[1772958286160,10.08498506,82.655,82.611,5.80163958]
[1772958286363,10.08498506,82.654,82.611,5.80163958]
[1772958286560,3.90410229,82.66,82.611,5.80163958]
[1772958286561,10.08498506,82.653,82.611,5.80163958]
[1772958286761,10.08498506,82.652,82.611,5.80163958]
[1772958286957,10.08498506,82.651,82.611,5.80163958]
[1772958287157,3.90410229,82.66,82.611,5.80163958]
[1772958287357,10.08525401,82.659,82.611,5.80163958]
[1772958287557,10.08525401,82.658,82.611,5.80163958]
[1772958287758,10.08525401,82.657,82.611,5.80163958]
[1772958287959,10.08525401,82.656,82.611,5.80163958]
[1772958288157,10.08525401,82.655,82.611,5.80163958]
[1772958288361,10.08525401,82.654,82.611,5.80163958]
[1772958288570,10.08525401,82.653,82.611,5.80163958]
[1772958288760,10.08525401,82.652,82.611,5.80163958]
[1772958288958,10.08525401,82.651,82.614,5.79446978]
[1772958289263,11.26877736,82.677,82.621,5.79446978]
[1772958289461,10.08464902,82.674,82.621,5.79446978]
[1772958289658,10.08464902,82.673,82.621,5.79446978]
[1772958289860,10.887,82.671,82.621,5.79446978]
[1772958290065,10.08464902,82.67,82.621,5.79446978]
[1772958290265,10.08464902,82.669,82.621,5.79446978]
[1772958290460,10.08464902,82.668,82.621,5.79446978]
[1772958290661,10.08464902,82.667,82.621,5.79446978]
[1772958290862,10.887,82.671,82.621,5.79446978]
[1772958290863,10.08464902,82.666,82.621,5.79446978]
[1772958291063,10.08464902,82.665,82.621,5.79446978]
[1772958291263,10.08464902,82.664,82.621,5.79446978]
[1772958291464,10.08464902,82.663,82.621,5.79446978]
[1772958291662,10.08464902,82.662,82.621,5.79446978]
[1772958291864,10.082576,82.661,82.621,5.79446978]
[1772958292064,10.887,82.671,82.621,5.79446978]
[1772958292263,10.08056329,82.67,82.621,5.79446978]
[1772958292463,10.08056329,82.669,82.621,5.79446978]
[1772958292671,10.08056329,82.668,82.621,5.79446978]
[1772958292964,10.08056329,82.667,82.621,5.79446978]
[1772958293165,10.08056329,82.666,82.621,5.79446978]
[1772958293466,10.08056329,82.665,82.621,5.79446978]
[1772958293668,10.887,82.671,82.63,3.90410229]
[1772958293669,10.08056329,82.664,82.63,3.90410229]
[1772958293961,10.08056329,82.663,82.63,3.90410229]
[1772958294166,10.887,82.671,82.63,9.64408877]
[1772958294366,10.03050014,82.67,82.63,9.64408877]
[1772958294566,10.03050014,82.669,82.63,9.64408877]
[1772958294865,10.03050014,82.668,82.63,9.64408877]
[1772958295062,10.03050014,82.667,82.63,9.64408877]
[1772958295263,10.03050014,82.666,82.63,9.64408877]
[1772958295464,10.03050014,82.665,82.63,9.64408877]
[1772958295663,10.03050014,82.664,82.63,9.64408877]
[1772958295864,10.03050014,82.663,82.63,5.73998648]
[1772958296070,10.03050014,82.662,82.63,5.73998648]
[1772958296266,10.03050014,82.661,82.63,5.73998648]
[1772958296458,10.03050014,82.66,82.63,5.73998648]
[1772958296668,10.887,82.671,82.63,5.73998648]
[1772958296868,10.887,82.669,82.63,5.73998648]
[1772958297065,10.02851487,82.668,82.63,5.73998648]
[1772958297265,10.02851487,82.667,82.63,5.73998648]
[1772958297470,10.02851487,82.666,82.63,5.73998648]
[1772958297671,10.02851487,82.665,82.63,5.73998648]
[1772958297864,10.887,82.669,82.63,5.73998648]
[1772958298064,10.02832924,82.668,82.63,5.73998648]
[1772958298265,3.90410229,82.68,82.63,5.73998648]
[1772958298464,10.02700607,82.674,82.63,5.73998648]
[1772958298664,10.02700607,82.673,82.63,5.73998648]
[1772958298965,10.887,82.671,82.63,5.73998648]
[1772958299161,10.02700607,82.67,82.63,5.73998648]
[1772958299466,10.02700607,82.669,82.63,5.73998648]
[1772958299664,10.02700607,82.668,82.63,5.73998648]
[1772958299864,10.02700607,82.667,82.63,5.73998648]
[1772958300065,10.887,82.671,82.63,5.73998648]
[1772958300363,10.0254068,82.67,82.63,5.73998648]
[1772958300560,10.0254068,82.669,82.63,5.73998648]
[1772958300762,10.0254068,82.668,82.63,5.73998648]
[1772958300965,10.0254068,82.667,82.63,5.73998648]
[1772958301174,10.0254068,82.666,82.63,5.73998648]
[1772958301371,10.0254068,82.665,82.63,5.73998648]
[1772958301571,10.887,82.671,82.63,5.73998648]
[1772958301766,10.02454201,82.67,82.63,5.73998648]
[1772958301968,10.02454201,82.669,82.63,5.73998648]
[1772958302169,10.02454201,82.668,82.63,5.73998648]
[1772958302468,10.02454201,82.667,82.63,5.73998648]
[1772958302669,10.887,82.671,82.63,5.73998648]
[1772958302869,10.887,82.669,82.63,5.73998648]
[1772958303068,10.02546195,82.668,82.63,5.73998648]
[1772958303270,10.02546195,82.667,82.63,5.73998648]
[1772958303470,10.02546195,82.666,82.63,5.73998648]
[1772958303670,10.02546195,82.665,82.63,5.73998648]
[1772958303869,10.02546195,82.664,82.63,5.73998648]
[1772958304176,10.02546195,82.663,82.63,5.73998648]
[1772958304371,10.887,82.669,82.63,5.73998648]
[1772958304571,10.02649374,82.668,82.63,5.73998648]
[1772958304871,10.02649374,82.667,82.63,5.73998648]
[1772958305069,10.02649374,82.666,82.63,5.73998648]
[1772958305269,10.887,82.669,82.63,5.73998648]
[1772958305270,10.02649374,82.665,82.63,5.73998648]
[1772958305471,10.02653677,82.664,82.63,5.73998648]
[1772958305770,3.90410229,82.66,82.611,5.74654821]
[1772958306373,3.90410229,82.65,82.611,5.74654821]
[1772958308176,10.888,82.659,82.611,5.74654821]
[1772958310876,0.04667469,82.658,82.611,5.74654821]
[1772958314481,0.1324024,82.654,82.611,5.74654821]
[1772958315878,10.889,82.652,82.611,5.74654821]
[1772958321989,11.27299233,82.652,82.611,5.74654821]
[1772958326389,0.49551412,82.651,82.611,5.74654821]
[1772958326600,0.49551412,82.629,82.592,5.78413476]
[1772958327189,0.49551412,82.629,82.586,326.68436106]
[1772958327897,0.5503043,82.627,82.583,5.78413104]
[1772958328097,0.5503043,82.625,82.583,5.78413104]
[1772958328494,0.5503043,82.623,82.583,5.78413104]
[1772958345007,11.57705151,82.622,82.583,5.78413104]
[1772958345706,0.68405151,82.621,82.583,5.78413104]
[1772958345909,0.70371812,82.616,82.583,5.78413104]
[1772958346908,10.894,82.615,82.583,5.78413104]
[1772958348211,11.64110362,82.615,82.583,5.78413104]
[1772958348410,0.74710362,82.614,82.583,5.78413104]
[1772958350507,11.67812142,82.623,82.591,5.92257678]
[1772958350809,10.893,82.623,82.591,5.92257678]
[1772958354414,10.893,82.623,82.58,3.90348072]
[1772958354415,0.8565818,82.643,82.601,5.9244778]
[1772958355907,11.789333,82.64,82.601,5.9244778]
[1772958357302,10.891,82.636,82.601,5.9244778]
[1772958359512,0.94749212,82.632,82.601,5.9244778]
[1772958360912,10.892,82.628,82.601,5.9244778]
[1772958361613,11.87535341,82.628,82.601,5.9244778]
[1772958362813,10.892,82.628,82.601,5.9244778]
[1772958363014,10.891,82.636,82.601,5.9244778]
[1772958370618,10.05028999,82.635,82.601,5.9244778]
[1772958370919,10.892,82.633,82.601,5.9244778]
[1772958373224,10.891,82.641,82.601,5.9244778]
[1772958373422,10.05652073,82.64,82.601,5.9244778]
[1772958373624,10.05652073,82.639,82.601,5.9244778]
[1772958373819,10.05652073,82.638,82.601,5.9244778]
[1772958374019,10.05652073,82.637,82.601,5.9244778]
[1772958374316,10.05471373,82.636,82.601,5.9244778]
[1772958374519,10.891,82.641,82.601,5.9244778]
[1772958374714,10.05471373,82.64,82.601,5.9244778]
[1772958374910,10.05471373,82.639,82.601,5.9244778]
[1772958375121,10.05471373,82.638,82.601,5.9244778]
[1772958375322,10.05471373,82.637,82.601,5.9244778]
[1772958375521,10.05471373,82.636,82.601,5.9244778]
[1772958375718,12.18624129,82.641,82.601,5.9244778]
[1772958375919,10.05448887,82.64,82.601,5.9244778]
[1772958376121,10.05448887,82.639,82.601,5.9244778]
[1772958376322,10.05448887,82.638,82.601,5.9244778]
[1772958376522,10.05448887,82.637,82.601,5.9244778]
[1772958376722,10.05448887,82.636,82.601,5.9244778]
[1772958376922,12.18624129,82.641,82.601,5.9244778]
[1772958377125,10.05409729,82.64,82.601,5.9244778]
[1772958377328,10.05409729,82.639,82.601,5.9244778]
[1772958377515,10.05409729,82.638,82.601,5.9244778]
[1772958377714,10.05409729,82.637,82.601,5.9244778]
[1772958377919,10.05409729,82.636,82.601,5.9244778]
[1772958378125,12.18624129,82.641,82.601,5.9244778]
[1772958378424,10.05342976,82.64,82.601,5.9244778]
[1772958378722,10.05342976,82.639,82.601,5.9244778]
[1772958378921,10.05342976,82.638,82.601,5.9244778]
[1772958379122,10.05342976,82.637,82.601,5.9244778]
[1772958379322,10.05342976,82.636,82.601,5.9244778]
[1772958379525,1.36225733,82.64,82.601,5.9244778]
[1772958379827,10.05318588,82.639,82.601,5.9244778]
[1772958380022,10.05318588,82.638,82.601,5.9244778]
[1772958380223,10.05318588,82.637,82.601,5.9244778]
[1772958380418,10.05318588,82.636,82.601,5.9244778]
[1772958380622,1.36225733,82.64,82.601,5.9244778]
[1772958380820,10.05297907,82.639,82.601,5.9244778]
[1772958381024,10.05297907,82.638,82.601,5.9244778]
[1772958381322,10.05297907,82.637,82.601,5.9244778]
[1772958381523,10.05297907,82.636,82.601,5.9244778]
[1772958381723,1.36225733,82.64,82.601,5.9244778]
[1772958381923,10.05281457,82.639,82.601,5.9244778]
[1772958382226,10.05281457,82.638,82.601,5.9244778]
[1772958382423,10.05281457,82.637,82.601,5.9244778]
[1772958382722,10.05281457,82.636,82.601,5.9244778]
[1772958383016,1.36225733,82.64,82.601,5.9244778]
[1772958383222,10.05270111,82.639,82.601,5.9244778]
[1772958383423,10.05270111,82.638,82.601,5.9244778]
[1772958383724,1.44008749,82.636,82.601,5.9244778]
[1772958389126,3.90480403,82.64,82.601,5.9244778]
[1772958389333,10.891,82.641,82.601,5.9244778]
[1772958389537,10.05434756,82.64,82.601,5.9244778]
[1772958389723,10.891,82.641,82.601,5.9244778]
[1772958389925,10.05434756,82.64,82.601,5.9244778]
[1772958390227,10.891,82.641,82.601,5.9244778]
[1772958390430,10.05419517,82.64,82.601,5.9244778]
[1772958390630,10.891,82.641,82.601,5.9244778]
[1772958390826,10.05419517,82.64,82.601,5.9244778]
[1772958391027,10.05419517,82.639,82.601,5.9244778]
[1772958391234,10.05419517,82.638,82.601,5.9244778]
[1772958391534,10.05419517,82.637,82.601,5.9244778]
[1772958391734,10.05419517,82.636,82.601,5.9244778]
[1772958391934,1.59731664,82.64,82.601,5.9244778]
[1772958392137,11.65276165,82.639,82.601,5.9244778]
[1772958392336,10.05544501,82.638,82.601,5.9244778]
[1772958392537,10.05544501,82.637,82.601,5.9244778]
[1772958392837,10.05544501,82.636,82.601,5.9244778]
[1772958393037,10.05544501,82.635,82.601,5.9244778]
[1772958393339,1.61553877,82.638,82.601,5.9244778]
[1772958393637,10.05904093,82.637,82.601,5.9244778]
[1772958393836,10.05904093,82.636,82.601,5.9244778]
[1772958394038,10.05904093,82.635,82.601,5.9244778]
[1772958394238,10.06135021,82.634,82.601,5.9244778]
[1772958394439,1.61553877,82.638,82.601,5.9244778]
[1772958394637,10.06134868,82.637,82.601,5.9244778]
[1772958394837,10.06134868,82.636,82.601,5.9244778]
[1772958395037,10.06134868,82.635,82.601,5.9244778]
[1772958395239,10.06134868,82.634,82.601,5.9244778]
[1772958395440,10.06134868,82.633,82.601,5.9244778]
[1772958395642,1.61553877,82.638,82.601,5.9244778]
[1772958395942,10.0641806,82.637,82.601,5.9244778]
[1772958396242,10.0641806,82.636,82.601,5.9244778]
[1772958396442,10.0641806,82.635,82.601,5.9244778]
[1772958396638,10.0641806,82.634,82.601,5.9244778]
[1772958396838,10.0641806,82.633,82.601,5.9244778]
[1772958397139,1.61553877,82.638,82.601,5.9244778]
[1772958397335,10.06510409,82.637,82.601,5.9244778]
[1772958397544,1.61553877,82.638,82.601,5.9244778]
[1772958397545,10.06510409,82.636,82.601,5.9244778]
[1772958397841,1.61553877,82.638,82.601,5.9244778]
[1772958398042,10.06541761,82.637,82.601,5.9244778]
[1772958398242,10.06541761,82.636,82.601,5.9244778]
[1772958398444,1.61553877,82.638,82.601,5.9244778]
[1772958398633,10.06575184,82.637,82.601,5.9244778]
[1772958398839,10.06575184,82.636,82.601,5.9244778]
[1772958399036,1.61553877,82.638,82.601,5.9244778]
[1772958399341,10.06561248,82.637,82.601,5.9244778]
[1772958399541,10.06561248,82.636,82.601,5.9244778]
[1772958399741,1.61553877,82.638,82.601,5.9244778]
[1772958399943,10.06681019,82.637,82.601,5.9244778]
[1772958400145,10.06681019,82.636,82.601,5.9244778]
[1772958400346,1.61553877,82.638,82.601,5.9244778]
[1772958407651,10.889,82.649,82.601,5.9244778]
[1772958407845,10.06819342,82.648,82.601,5.9244778]
[1772958408149,10.06819342,82.647,82.601,5.9244778]
[1772958408350,10.06819342,82.646,82.601,5.9244778]
[1772958408550,10.06819342,82.645,82.601,5.9244778]
[1772958408748,10.06819342,82.644,82.601,5.9244778]
[1772958408950,12.72049649,82.649,82.601,5.9244778]
[1772958409153,10.06721968,82.648,82.604,6.56389879]
[1772958409352,1.83149649,82.649,82.604,6.56389879]
[1772958409653,10.06694677,82.648,82.604,6.56389879]
[1772958409953,1.83149649,82.649,82.604,6.56389879]
[1772958415957,1.98379728,82.639,82.604,6.56389879]
[1772958421865,2.05022446,82.637,82.604,6.56389879]
[1772958431967,3.90480403,82.64,82.604,6.56389879]
[1772958432172,3.90480403,82.65,82.604,6.56389879]
[1772958432374,10.07657114,82.649,82.604,6.56389879]
[1772958432572,10.07657114,82.648,82.604,6.56389879]
[1772958432773,10.07657114,82.647,82.604,6.56389879]
[1772958432970,10.07657114,82.646,82.604,6.56389879]
[1772958433170,10.07657114,82.645,82.604,6.56389879]
[1772958433470,10.07657114,82.644,82.604,6.56389879]
[1772958433666,10.889,82.653,82.604,6.56389879]
[1772958433866,10.07697214,82.65,82.604,6.56389879]
[1772958434063,10.07697214,82.649,82.604,6.56389879]
[1772958434271,10.07697214,82.648,82.604,6.56389879]
[1772958434474,10.07697214,82.647,82.604,6.56389879]
[1772958434769,10.889,82.653,82.604,6.56389879]
[1772958434971,10.07709832,82.65,82.604,6.56389879]
[1772958435172,10.07709832,82.649,82.604,6.56389879]
[1772958435474,10.889,82.653,82.611,6.12973741]
[1772958435475,10.07709832,82.648,82.611,6.12973741]
[1772958435673,10.889,82.653,82.611,6.12973741]
[1772958435874,10.07678954,82.65,82.611,6.12973741]
[1772958436066,10.07678954,82.649,82.611,6.12973741]
[1772958436270,10.07678954,82.648,82.611,6.12973741]
[1772958436470,10.889,82.653,82.611,6.12973741]
[1772958436674,10.07671652,82.65,82.611,6.12973741]
[1772958436870,10.889,82.653,82.611,6.12973741]
[1772958436871,10.07671652,82.649,82.611,6.12973741]
[1772958437173,10.07671652,82.648,82.611,6.12973741]
[1772958437475,10.889,82.653,82.611,6.12973741]
[1772958437676,10.07681457,82.65,82.611,6.12973741]
[1772958437976,10.07681457,82.649,82.611,6.12973741]
[1772958438176,10.889,82.653,82.611,6.12973741]
[1772958438372,10.07692368,82.65,82.611,6.12973741]
[1772958438572,10.07692368,82.649,82.611,6.12973741]
[1772958438874,10.889,82.653,82.611,6.12973741]
[1772958439173,10.07692368,82.65,82.611,6.12973741]
[1772958439374,10.07692368,82.649,82.611,6.12973741]
[1772958439567,10.889,82.653,82.611,6.12973741]
[1772958439772,10.07698348,82.65,82.611,6.12973741]
[1772958439973,10.07698348,82.649,82.611,6.12973741]
[1772958440179,10.889,82.653,82.611,6.12973741]
[1772958440476,10.07713654,82.65,82.611,6.12973741]
[1772958440776,10.07713654,82.649,82.611,6.12973741]
[1772958440976,10.889,82.653,82.611,6.12973741]
[1772958441177,10.07713654,82.65,82.611,6.12973741]
[1772958441471,10.07713654,82.649,82.611,6.12973741]
[1772958441676,10.889,82.653,82.611,6.12973741]
[1772958441873,10.07475793,82.65,82.611,6.12973741]
[1772958442073,10.07475793,82.649,82.611,6.12973741]
[1772958442276,10.889,82.653,82.611,6.12973741]
[1772958442474,10.07507611,82.65,82.611,6.12973741]
[1772958442676,10.07507611,82.649,82.611,6.12973741]
[1772958442874,10.889,82.653,82.611,6.12973741]
[1772958443081,10.07505093,82.65,82.611,6.12973741]
[1772958443379,10.07505093,82.649,82.611,6.12973741]
[1772958443580,10.889,82.653,82.611,6.12973741]
[1772958443780,10.07500061,82.65,82.611,6.12973741]
[1772958443980,10.07500061,82.649,82.611,6.12973741]
[1772958444179,10.889,82.653,82.611,6.12973741]
[1772958444480,10.07306243,82.65,82.611,6.12973741]
[1772958444780,10.07306243,82.649,82.611,6.12973741]
[1772958444980,10.889,82.653,82.611,6.12973741]
[1772958445281,10.07326877,82.65,82.611,6.12973741]
[1772958445479,10.07312894,82.649,82.611,6.12973741]
[1772958445680,2.07053859,82.658,82.611,6.12973741]
[1772958445978,10.0731255,82.65,82.611,6.12973741]
[1772958446179,2.07053859,82.658,82.611,6.12973741]
[1772958446380,10.06675193,82.65,82.611,6.12973741]
[1772958446580,2.07053859,82.658,82.611,6.12973741]
[1772958446779,10.06691971,82.65,82.611,6.12973741]
[1772958446977,2.07053859,82.658,82.611,6.12973741]
[1772958447278,10.06666813,82.65,82.611,6.12973741]
[1772958447580,2.07053859,82.658,82.611,6.12973741]
[1772958447771,10.06627826,82.65,82.611,6.12973741]
[1772958447976,2.07053859,82.658,82.611,6.12973741]
[1772958448276,10.06628162,82.65,82.611,6.12973741]
[1772958448578,2.07053859,82.658,82.611,6.12973741]
[1772958448779,10.06626717,82.65,82.611,6.12973741]
[1772958448980,2.07053859,82.658,82.611,6.12973741]
[1772958449280,10.06626765,82.65,82.611,6.12973741]
[1772958449479,2.07053859,82.658,82.611,6.12973741]
[1772958449680,10.06614964,82.65,82.611,6.12973741]
[1772958449871,465.89569677,82.651,82.611,6.12973741]
[1772958450075,10.06418379,82.65,82.611,6.12973741]
[1772958450281,465.89569677,82.651,82.611,6.12973741]
[1772958450579,12.27543302,82.65,82.611,6.12973741]
[1772958450780,2.21135687,82.65,82.611,6.12973741]
[1772958451180,10.06384618,82.649,82.611,6.12973741]
[1772958451381,10.06384618,82.648,82.611,6.12973741]
[1772958451577,2.21135687,82.65,82.611,6.12973741]
[1772958451778,10.06384158,82.649,82.611,6.12973741]
[1772958451981,2.21135687,82.65,82.611,6.12973741]
[1772958456686,2.25992166,82.648,82.601,6.80007959]
[1772958456889,2.26516766,82.646,82.601,6.80007959]
[1772958457090,2.26516766,82.644,82.601,6.80007959]
[1772958485812,2.26516766,82.644,82.604,6.69262754]
[1772958486015,2.26516766,82.644,82.61,3.90370902]
[1772958486221,2.26516766,82.644,82.611,6.69262754]
[1772958500936,2.18029349,82.653,82.611,6.69262754]
[1772958501132,2.18029349,82.651,82.611,6.69262754]
[1772958502639,10.888,82.658,82.611,6.69262754]
[1772958502834,10.05816712,82.657,82.611,6.69262754]
[1772958503039,10.05816712,82.656,82.611,6.69262754]
[1772958503238,10.05816712,82.655,82.611,6.69262754]
[1772958503439,10.05816712,82.654,82.611,6.69262754]
[1772958503739,10.05816712,82.653,82.611,6.69262754]
[1772958503941,2.17514458,82.657,82.611,6.69262754]
[1772958504140,10.06276619,82.656,82.611,6.69262754]
[1772958504341,10.06276619,82.655,82.611,6.69262754]
[1772958504637,10.06276619,82.654,82.621,6.69262754]
[1772958504843,2.17514458,82.657,82.621,6.69262754]
[1772958506641,2.18103293,82.667,82.631,6.69262754]
[1772958506842,10.06095073,82.666,82.631,6.69262754]
[1772958507044,10.06095073,82.665,82.631,6.69262754]
[1772958507346,10.06095073,82.664,82.631,6.69262754]
[1772958507547,2.18103293,82.667,82.631,6.69262754]
[1772958507845,10.05946388,82.666,82.631,6.69262754]
[1772958508047,10.05946388,82.665,82.631,6.69262754]
[1772958508345,2.18103293,82.667,82.631,6.69262754]
[1772958508544,10.05797048,82.666,82.631,6.69262754]
[1772958508744,10.05797048,82.665,82.631,6.69262754]
[1772958508945,2.18103293,82.667,82.631,6.69262754]
[1772958509139,10.05818132,82.666,82.631,6.69262754]
[1772958509337,10.05818132,82.665,82.631,6.69262754]
[1772958509548,2.18103293,82.667,82.631,6.69262754]
[1772958509743,10.05714211,82.666,82.631,6.69262754]
[1772958509944,10.05714211,82.665,82.631,6.69262754]
[1772958510144,2.18103293,82.667,82.631,6.69262754]
[1772958510345,10.05750746,82.666,82.631,6.69262754]
[1772958510544,10.05750746,82.665,82.631,6.69262754]
[1772958510745,2.18103293,82.667,82.631,6.69262754]
[1772958511045,10.05750746,82.666,82.631,6.69262754]
[1772958511249,2.18103293,82.667,82.631,6.69262754]
[1772958511449,10.05640725,82.666,82.631,6.69262754]
[1772958511649,2.1811919,82.677,82.641,6.69262754]
[1772958517154,2.20746315,82.688,82.641,6.69262754]
[1772958517355,2.20746315,82.686,82.641,6.69262754]
[1772958517555,2.20746315,82.684,82.641,6.69262754]
[1772958532775,2.1141065,82.693,82.651,6.82946569]
[1772958533068,2.11614998,82.709,82.651,6.82946569]
[1772958533270,2.11614998,82.707,82.651,6.82946569]
[1772958533463,2.11614998,82.705,82.651,6.82946569]
[1772958533771,2.11614998,82.704,82.651,6.82946569]
[1772958542075,10.882,82.705,82.661,6.82946569]
[1772958542573,2.09681541,82.699,82.661,6.82946569]
[1772958543675,11.26231364,82.73,82.652,6.51262429]
[1772958543676,2.10161894,82.689,82.652,6.51262429]
[1772958543882,2.10161894,82.689,82.631,6.51262429]
[1772958544578,2.05974329,82.679,82.631,6.51262429]
[1772958548191,2.05273235,82.677,82.631,6.51262429]
[1772958553492,2.05273235,82.677,82.641,6.51262429]
[1772958567002,2.00125219,82.673,82.641,6.51262429]
[1772958568100,1.991196,82.685,82.641,6.51262429]
[1772958568301,1.991196,82.683,82.641,6.51262429]
[1772958568499,1.991196,82.681,82.641,6.51262429]
[1772958568700,12.02050631,82.68,82.641,6.51262429]
[1772958568912,1.991196,82.68,82.641,6.51262429]
[1772958578614,1.991196,82.68,82.65,3.90048795]
[1772958578820,1.991196,82.68,82.651,6.59312344]
[1772958584023,2.02906823,82.689,82.651,6.59312344]
[1772958584225,10.03382609,82.688,82.651,6.59312344]
[1772958584423,10.03382609,82.687,82.651,6.59312344]
[1772958584624,2.02906823,82.689,82.651,6.59312344]
[1772958584826,10.03403909,82.688,82.651,6.59312344]